[Event "Early-Titled-Tuesday-Blitz-April-16-2024"]
[Site "Chess.com"]
[Date "2024.04.16"]
[Round "8"]
[White "IPAchess"]
[Black "AmanteDeMoi"]
[Result "0-1"]
[WhiteElo "2385"]
[BlackElo "2602"]
[TimeControl "180+1"]
[EndTime "9:31:32 PDT"]
[Termination "AmanteDeMoi won on time"]

1. d4 {[%clk 0:03:00.9]} 1... g6 {[%clk 0:03:00.9]} 2. c4 {[%clk 0:02:54.3]}
2... Bg7 {[%clk 0:03:01.8]} 3. Nf3 {[%clk 0:02:52.6]} 3... d6 {[%clk 0:03:02.2]}
4. Nc3 {[%clk 0:02:53.1]} 4... e5 {[%clk 0:03:02.6]} 5. dxe5 {[%clk 0:02:52.5]}
5... dxe5 {[%clk 0:03:03.5]} 6. Qxd8+ {[%clk 0:02:52.4]} 6... Kxd8 {[%clk
0:03:04.4]} 7. Bg5+ {[%clk 0:02:52.5]} 7... f6 {[%clk 0:03:04.9]} 8. O-O-O+
{[%clk 0:02:53.1]} 8... Nd7 {[%clk 0:03:05.3]} 9. Bh4 {[%clk 0:02:38]} 9... Ne7
{[%clk 0:03:03.4]} 10. h3 {[%clk 0:02:21.1]} 10... Nf5 {[%clk 0:03:00.3]} 11. e4
{[%clk 0:02:11.2]} 11... Nxh4 {[%clk 0:02:59.2]} 12. Nxh4 {[%clk 0:02:12.1]}
12... c6 {[%clk 0:02:59.6]} 13. Be2 {[%clk 0:02:10.8]} 13... Ke7 {[%clk
0:02:57.9]} 14. Kb1 {[%clk 0:02:03.2]} 14... a5 {[%clk 0:02:57.5]} 15. Rd2
{[%clk 0:02:02.1]} 15... Nc5 {[%clk 0:02:50.9]} 16. Rhd1 {[%clk 0:02:01.3]}
16... Bh6 {[%clk 0:02:47.4]} 17. Rc2 {[%clk 0:02:01.2]} 17... Be6 {[%clk
0:02:44.1]} 18. g3 {[%clk 0:01:49.5]} 18... Rhd8 {[%clk 0:02:25]} 19. Rxd8
{[%clk 0:01:42.3]} 19... Rxd8 {[%clk 0:02:25.9]} 20. g4 {[%clk 0:01:42.4]} 20...
Rd4 {[%clk 0:02:10]} 21. Nf3 {[%clk 0:01:35.6]} 21... Rd8 {[%clk 0:01:49.5]} 22.
b3 {[%clk 0:01:36.2]} 22... Bf4 {[%clk 0:01:48]} 23. Kb2 {[%clk 0:01:31.4]}
23... Bf7 {[%clk 0:01:47.5]} 24. a3 {[%clk 0:01:26.4]} 24... Nd3+ {[%clk
0:01:47.7]} 25. Bxd3 {[%clk 0:01:24.5]} 25... Rxd3 {[%clk 0:01:48.6]} 26. Ng1
{[%clk 0:01:22.8]} 26... b5 {[%clk 0:01:36.7]} 27. Nce2 {[%clk 0:01:19.7]} 27...
a4 {[%clk 0:01:32]} 28. bxa4 {[%clk 0:01:16.1]} 28... bxa4 {[%clk 0:01:27.2]}
29. Nxf4 {[%clk 0:01:14.5]} 29... exf4 {[%clk 0:01:28.1]} 30. Rc3 {[%clk
0:01:08.2]} 30... Rd2+ {[%clk 0:01:28.3]} 31. Rc2 {[%clk 0:01:08.2]} 31... Rxc2+
{[%clk 0:01:28.6]} 32. Kxc2 {[%clk 0:01:09.1]} 32... Bxc4 {[%clk 0:01:29.5]} 33.
Kc3 {[%clk 0:01:06.3]} 33... Bb5 {[%clk 0:01:23.9]} 34. Nf3 {[%clk 0:01:03.4]}
34... c5 {[%clk 0:01:23.5]} 35. h4 {[%clk 0:00:47.3]} 35... Bd7 {[%clk
0:01:17.5]} 36. g5 {[%clk 0:00:46.2]} 36... Bb5 {[%clk 0:01:17.5]} 37. Nd2
{[%clk 0:00:37.8]} 37... Ke6 {[%clk 0:01:16.9]} 38. f3 {[%clk 0:00:33.2]} 38...
Be2 {[%clk 0:01:12.8]} 39. Kc2 {[%clk 0:00:14.3]} 39... Ke5 {[%clk 0:01:12.4]}
40. Kc3 {[%clk 0:00:14.2]} 40... Kd6 {[%clk 0:01:10.6]} 41. Kc2 {[%clk
0:00:14.3]} 41... Ke6 {[%clk 0:01:10.5]} 42. Kc3 {[%clk 0:00:14.8]} 42... Ke5
{[%clk 0:01:11.2]} 43. Nc4+ {[%clk 0:00:13.1]} 43... Ke6 {[%clk 0:01:05]} 44.
Nd2 {[%clk 0:00:11.8]} 44... fxg5 {[%clk 0:01:05.9]} 45. hxg5 {[%clk 0:00:11.6]}
45... h5 {[%clk 0:00:56.8]} 46. gxh6 {[%clk 0:00:11]} 46... Kf6 {[%clk
0:00:57.7]} 47. e5+ {[%clk 0:00:09.3]} 47... Kf7 {[%clk 0:00:54.9]} 48. e6+
{[%clk 0:00:07.8]} 48... Kg8 {[%clk 0:00:55.8]} 49. Nc4 {[%clk 0:00:03]} 49...
Bxf3 {[%clk 0:00:54.5]} 50. Ne5 {[%clk 0:00:01.7]} 50... Bc6 {[%clk 0:00:55.4]}
51. Nxg6 {[%clk 0:00:01.9]} 51... f3 {[%clk 0:00:56.3]} 52. Kd3 {[%clk
0:00:01.7]} 52... Kh7 {[%clk 0:00:57.2]} 0-1

[Event "Early-Titled-Tuesday-Blitz-April-16-2024"]
[Site "Chess.com"]
[Date "2024.04.16"]
[Round "8"]
[White "imdvb6307"]
[Black "Shuvalov"]
[Result "1-0"]
[WhiteElo "2524"]
[BlackElo "2616"]
[TimeControl "180+1"]
[EndTime "9:31:32 PDT"]
[Termination "imdvb6307 won on time"]

1. d4 {[%clk 0:03:00.9]} 1... Nf6 {[%clk 0:02:58.5]} 2. Nf3 {[%clk 0:03:01.1]}
2... g6 {[%clk 0:02:56.7]} 3. c4 {[%clk 0:03:00.7]} 3... Bg7 {[%clk 0:02:55.2]}
4. Nc3 {[%clk 0:03:00.9]} 4... d5 {[%clk 0:02:55.5]} 5. Bf4 {[%clk 0:03:00.2]}
5... O-O {[%clk 0:02:50.3]} 6. Rc1 {[%clk 0:03:00.1]} 6... c5 {[%clk 0:02:49.9]}
7. dxc5 {[%clk 0:02:58.1]} 7... Ne4 {[%clk 0:02:38.8]} 8. Be5 {[%clk 0:02:54]}
8... Bxe5 {[%clk 0:02:36]} 9. Nxe5 {[%clk 0:02:54.2]} 9... Nxc3 {[%clk
0:02:35.3]} 10. Rxc3 {[%clk 0:02:53.7]} 10... d4 {[%clk 0:02:30.5]} 11. Rd3
{[%clk 0:02:43.6]} 11... Qa5+ {[%clk 0:02:30.1]} 12. Qd2 {[%clk 0:02:35.1]}
12... Qxc5 {[%clk 0:02:28.8]} 13. Nf3 {[%clk 0:02:28.4]} 13... e5 {[%clk
0:02:27.2]} 14. e4 {[%clk 0:01:51.8]} 14... f5 {[%clk 0:02:03.1]} 15. Qh6 {[%clk
0:01:44.3]} 15... fxe4 {[%clk 0:01:42.4]} 16. Ng5 {[%clk 0:01:43.1]} 16... Qe7
{[%clk 0:01:42.4]} 17. Nxe4 {[%clk 0:01:42.2]} 17... Bf5 {[%clk 0:01:42.3]} 18.
f3 {[%clk 0:01:41.8]} 18... Bxe4 {[%clk 0:01:37.7]} 19. fxe4 {[%clk 0:01:41.3]}
19... Rf4 {[%clk 0:01:38]} 20. Rh3 {[%clk 0:01:26.8]} 20... Nd7 {[%clk
0:01:08.6]} 21. c5 {[%clk 0:01:09.4]} 21... Nf6 {[%clk 0:00:33.2]} 22. Bc4+
{[%clk 0:01:07.7]} 22... Kh8 {[%clk 0:00:31.6]} 23. Rf1 {[%clk 0:00:52.6]} 23...
Qxc5 {[%clk 0:00:22.2]} 24. Rxf4 {[%clk 0:00:46.2]} 24... exf4 {[%clk
0:00:23.1]} 25. Qxg6 {[%clk 0:00:46.1]} 25... Qb4+ {[%clk 0:00:19.5]} 26. Kd1
{[%clk 0:00:46.3]} 26... Rf8 {[%clk 0:00:18.4]} 27. Qh6 {[%clk 0:00:18.8]} 27...
f3 {[%clk 0:00:12]} 28. gxf3 {[%clk 0:00:15.2]} 28... d3 {[%clk 0:00:11.6]} 29.
e5 {[%clk 0:00:15.3]} 29... Qc5 {[%clk 0:00:06.1]} 30. exf6 {[%clk 0:00:13.5]}
30... Qg1+ {[%clk 0:00:06.3]} 31. Kd2 {[%clk 0:00:13.9]} 31... Qf2+ {[%clk
0:00:06.5]} 32. Kxd3 {[%clk 0:00:11.2]} 32... Rd8+ {[%clk 0:00:07.2]} 33. Ke4
{[%clk 0:00:11.4]} 33... Qd4+ {[%clk 0:00:04.1]} 34. Kf5 {[%clk 0:00:10.6]}
34... Qc5+ {[%clk 0:00:02.3]} 35. Kg4 {[%clk 0:00:06.4]} 1-0

[Event "Early-Titled-Tuesday-Blitz-April-16-2024"]
[Site "Chess.com"]
[Date "2024.04.16"]
[Round "8"]
[White "SpeedofLight0"]
[Black "superchess02"]
[Result "1-0"]
[WhiteElo "3081"]
[BlackElo "2902"]
[TimeControl "180+1"]
[EndTime "9:31:33 PDT"]
[Termination "SpeedofLight0 won by resignation"]

1. d4 {[%clk 0:03:00.9]} 1... Nf6 {[%clk 0:02:59.5]} 2. Nc3 {[%clk 0:03:00.6]}
2... d5 {[%clk 0:02:59.5]} 3. Bf4 {[%clk 0:03:00.6]} 3... e6 {[%clk 0:02:58.3]}
4. e3 {[%clk 0:03:00]} 4... Bd6 {[%clk 0:02:58.1]} 5. Qf3 {[%clk 0:03:00]} 5...
Bxf4 {[%clk 0:02:54.6]} 6. exf4 {[%clk 0:03:00.9]} 6... a6 {[%clk 0:02:49.1]} 7.
O-O-O {[%clk 0:02:59.6]} 7... Qd6 {[%clk 0:02:49.5]} 8. g4 {[%clk 0:02:58.7]}
8... h6 {[%clk 0:02:46.1]} 9. g5 {[%clk 0:02:55.7]} 9... hxg5 {[%clk 0:02:44]}
10. fxg5 {[%clk 0:02:56.6]} 10... Nh5 {[%clk 0:02:43.6]} 11. Nh3 {[%clk
0:02:49.1]} 11... Nc6 {[%clk 0:02:43]} 12. Re1 {[%clk 0:02:20.7]} 12... Nxd4
{[%clk 0:02:32.3]} 13. Qxd5 {[%clk 0:02:19.7]} 13... Bd7 {[%clk 0:02:24.7]} 14.
Qc4 {[%clk 0:02:00.9]} 14... Bb5 {[%clk 0:01:50.4]} 15. Ne4 {[%clk 0:01:38]}
15... Bxc4 {[%clk 0:01:22.8]} 16. Nxd6+ {[%clk 0:01:38]} 16... cxd6 {[%clk
0:01:23.7]} 17. Bxc4 {[%clk 0:01:38.4]} 17... Rc8 {[%clk 0:01:23.1]} 18. Bd3
{[%clk 0:01:38.2]} 18... Kd7 {[%clk 0:01:15.9]} 19. Re4 {[%clk 0:01:27]} 19...
Nc6 {[%clk 0:00:58.3]} 20. Rhe1 {[%clk 0:01:24.5]} 20... g6 {[%clk 0:00:58.1]}
21. Ng1 {[%clk 0:01:21]} 21... Ng7 {[%clk 0:00:57.7]} 22. Nf3 {[%clk 0:01:17]}
22... Rh3 {[%clk 0:00:53.3]} 23. R1e3 {[%clk 0:01:09.8]} 23... Rhh8 {[%clk
0:00:26.3]} 24. Rf4 {[%clk 0:01:06.7]} 24... Nf5 {[%clk 0:00:23]} 25. Bxf5
{[%clk 0:01:04.1]} 25... gxf5 {[%clk 0:00:22.9]} 26. h4 {[%clk 0:01:04.9]} 26...
Ne7 {[%clk 0:00:22.8]} 27. Rd4 {[%clk 0:01:04.3]} 27... Ng6 {[%clk 0:00:16.5]}
28. a4 {[%clk 0:00:58.8]} 28... a5 {[%clk 0:00:13]} 29. Rb3 {[%clk 0:00:56.5]}
29... Rc7 {[%clk 0:00:12.9]} 30. Rb5 {[%clk 0:00:55.8]} 30... Ke7 {[%clk
0:00:12.5]} 31. Rxa5 {[%clk 0:00:47.3]} 31... e5 {[%clk 0:00:13.1]} 32. Rb4
{[%clk 0:00:48]} 32... Nf4 {[%clk 0:00:13.6]} 33. Kd2 {[%clk 0:00:45.7]} 33...
Rhc8 {[%clk 0:00:11.7]} 34. c3 {[%clk 0:00:43.4]} 34... Ne6 {[%clk 0:00:10.8]}
35. Ne1 {[%clk 0:00:35.1]} 35... Nc5 {[%clk 0:00:08.8]} 36. Nd3 {[%clk
0:00:34.4]} 36... Ne4+ {[%clk 0:00:06.4]} 37. Ke3 {[%clk 0:00:33.8]} 37... f6
{[%clk 0:00:06.9]} 38. g6 {[%clk 0:00:26.6]} 38... Rh8 {[%clk 0:00:06.7]} 39.
Rab5 {[%clk 0:00:25.7]} 39... Rxh4 {[%clk 0:00:05.3]} 40. Rxb7 {[%clk
0:00:25.8]} 40... Rxb7 {[%clk 0:00:04.7]} 41. Rxb7+ {[%clk 0:00:26.7]} 41... Kf8
{[%clk 0:00:05.6]} 42. a5 {[%clk 0:00:24.3]} 42... Rh3+ {[%clk 0:00:06.1]} 43.
Ke2 {[%clk 0:00:24.5]} 43... Rxd3 {[%clk 0:00:05.2]} 44. Rb8+ {[%clk 0:00:24.5]}
44... Kg7 {[%clk 0:00:04.9]} 45. Kxd3 {[%clk 0:00:25.1]} 45... Nc5+ {[%clk
0:00:05.6]} 46. Ke2 {[%clk 0:00:24.6]} 46... Kxg6 {[%clk 0:00:06.5]} 47. b4
{[%clk 0:00:24.6]} 1-0

[Event "Early-Titled-Tuesday-Blitz-April-16-2024"]
[Site "Chess.com"]
[Date "2024.04.16"]
[Round "8"]
[White "Kotofeyca"]
[Black "David_George21"]
[Result "0-1"]
[WhiteElo "2469"]
[BlackElo "2326"]
[TimeControl "180+1"]
[EndTime "9:31:33 PDT"]
[Termination "David_George21 won by resignation"]

1. d4 {[%clk 0:03:00.9]} 1... Nf6 {[%clk 0:02:56.8]} 2. c4 {[%clk 0:03:00.8]}
2... e6 {[%clk 0:02:56.9]} 3. Nf3 {[%clk 0:03:00.9]} 3... d5 {[%clk 0:02:55.9]}
4. Nc3 {[%clk 0:03:00.7]} 4... Bb4 {[%clk 0:02:54.4]} 5. cxd5 {[%clk 0:02:59.7]}
5... exd5 {[%clk 0:02:55.3]} 6. Qa4+ {[%clk 0:02:58.8]} 6... Nc6 {[%clk
0:02:54.7]} 7. Ne5 {[%clk 0:02:59.4]} 7... a5 {[%clk 0:02:53.3]} 8. Nxc6 {[%clk
0:02:56.7]} 8... bxc6 {[%clk 0:02:54.2]} 9. a3 {[%clk 0:02:48.5]} 9... Bd6
{[%clk 0:02:51]} 10. Bg5 {[%clk 0:02:39.4]} 10... O-O {[%clk 0:02:47.5]} 11. e3
{[%clk 0:02:38.6]} 11... Bd7 {[%clk 0:02:45.1]} 12. Qc2 {[%clk 0:02:35.4]} 12...
h6 {[%clk 0:02:43.8]} 13. Bh4 {[%clk 0:02:34.9]} 13... Re8 {[%clk 0:02:35.4]}
14. Be2 {[%clk 0:02:33.4]} 14... Rb8 {[%clk 0:02:33.8]} 15. O-O {[%clk
0:02:31.1]} 15... Be7 {[%clk 0:02:11.4]} 16. Na4 {[%clk 0:02:27.4]} 16... Ne4
{[%clk 0:02:10]} 17. Bxe7 {[%clk 0:02:26.5]} 17... Qxe7 {[%clk 0:02:10.9]} 18.
Bd3 {[%clk 0:02:22.5]} 18... c5 {[%clk 0:02:04.3]} 19. Nxc5 {[%clk 0:02:11.2]}
19... Nxc5 {[%clk 0:02:03.8]} 20. dxc5 {[%clk 0:02:09.6]} 20... c6 {[%clk
0:01:55.7]} 21. Rab1 {[%clk 0:02:03.4]} 21... Qg5 {[%clk 0:01:48]} 22. Rfc1
{[%clk 0:01:53.5]} 22... h5 {[%clk 0:01:39]} 23. b4 {[%clk 0:01:46.2]} 23...
axb4 {[%clk 0:01:36.8]} 24. axb4 {[%clk 0:01:47.1]} 24... h4 {[%clk 0:01:36.1]}
25. Kh1 {[%clk 0:01:18.8]} 25... h3 {[%clk 0:01:34.1]} 26. g3 {[%clk 0:01:18.2]}
26... Bg4 {[%clk 0:01:33]} 27. Qc3 {[%clk 0:01:08.8]} 27... Bf5 {[%clk
0:00:56.2]} 28. Kg1 {[%clk 0:00:59.9]} 28... Qh5 {[%clk 0:00:46.4]} 29. Bxf5
{[%clk 0:00:29.2]} 29... Qxf5 {[%clk 0:00:47.3]} 30. Qe1 {[%clk 0:00:26.7]}
30... Rb5 {[%clk 0:00:37.4]} 31. Rd1 {[%clk 0:00:23.8]} 31... Ra8 {[%clk
0:00:34.6]} 32. Rd4 {[%clk 0:00:20.6]} 32... Qf3 {[%clk 0:00:17]} 33. Qf1 {[%clk
0:00:19.5]} 33... Ra2 {[%clk 0:00:11.9]} 34. Rf4 {[%clk 0:00:18]} 34... Qh5
{[%clk 0:00:10.1]} 35. Rh4 {[%clk 0:00:18]} 35... Qf5 {[%clk 0:00:09.4]} 36.
Rxh3 {[%clk 0:00:16.6]} 36... Rxf2 {[%clk 0:00:09.7]} 37. Qxf2 {[%clk
0:00:16.8]} 37... Qxb1+ {[%clk 0:00:10.6]} 38. Kg2 {[%clk 0:00:16.4]} 38... Rxb4
{[%clk 0:00:10]} 39. Rh4 {[%clk 0:00:15.2]} 39... Rb2 {[%clk 0:00:10.1]} 40. Rf4
{[%clk 0:00:14.5]} 40... Rxf2+ {[%clk 0:00:09.6]} 41. Rxf2 {[%clk 0:00:15.4]}
41... Qb4 {[%clk 0:00:09.5]} 42. Rc2 {[%clk 0:00:13.6]} 42... Qe4+ {[%clk
0:00:09.9]} 0-1

[Event "Early-Titled-Tuesday-Blitz-April-16-2024"]
[Site "Chess.com"]
[Date "2024.04.16"]
[Round "8"]
[White "Alblooshi_Hamad"]
[Black "dianamirza"]
[Result "1-0"]
[WhiteElo "2179"]
[BlackElo "1947"]
[TimeControl "180+1"]
[EndTime "9:31:35 PDT"]
[Termination "Alblooshi_Hamad won by resignation"]

1. d4 {[%clk 0:02:58.2]} 1... Nf6 {[%clk 0:02:43.2]} 2. c4 {[%clk 0:02:55.1]}
2... g6 {[%clk 0:02:44.1]} 3. Nc3 {[%clk 0:02:50.4]} 3... c5 {[%clk 0:02:44.6]}
4. d5 {[%clk 0:02:34.5]} 4... Bg7 {[%clk 0:02:43.7]} 5. e4 {[%clk 0:02:34.1]}
5... O-O {[%clk 0:02:44.6]} 6. Bd3 {[%clk 0:02:22.1]} 6... d6 {[%clk 0:02:45.1]}
7. f4 {[%clk 0:02:15]} 7... Bg4 {[%clk 0:02:42.8]} 8. Nf3 {[%clk 0:02:11.5]}
8... Na6 {[%clk 0:02:39.8]} 9. O-O {[%clk 0:02:06.1]} 9... Nb4 {[%clk
0:02:39.5]} 10. h3 {[%clk 0:01:55]} 10... Bxf3 {[%clk 0:02:30.8]} 11. Qxf3
{[%clk 0:01:55.9]} 11... Nxd3 {[%clk 0:02:31.6]} 12. Qxd3 {[%clk 0:01:56.8]}
12... Rb8 {[%clk 0:02:18.3]} 13. Bd2 {[%clk 0:01:55]} 13... a6 {[%clk
0:02:18.6]} 14. a4 {[%clk 0:01:52]} 14... Nd7 {[%clk 0:02:16.6]} 15. Rae1 {[%clk
0:01:51.1]} 15... b5 {[%clk 0:02:14.6]} 16. axb5 {[%clk 0:01:50.1]} 16... axb5
{[%clk 0:02:15.5]} 17. cxb5 {[%clk 0:01:26.2]} 17... Nb6 {[%clk 0:02:14.3]} 18.
e5 {[%clk 0:01:18.1]} 18... dxe5 {[%clk 0:02:11.1]} 19. fxe5 {[%clk 0:01:19]}
19... Nd7 {[%clk 0:01:48.3]} 20. Bf4 {[%clk 0:01:07.3]} 20... Qb6 {[%clk
0:01:43.2]} 21. Kh1 {[%clk 0:01:02.9]} 21... e6 {[%clk 0:01:41.2]} 22. d6 {[%clk
0:00:57.2]} 22... Rfc8 {[%clk 0:01:35.5]} 23. Qc4 {[%clk 0:00:55.8]} 23... Qa5
{[%clk 0:01:31.7]} 24. Qe2 {[%clk 0:00:40.2]} 24... Rb6 {[%clk 0:01:16.9]} 25.
Qf3 {[%clk 0:00:34.2]} 25... Rcb8 {[%clk 0:01:10.1]} 26. Bg5 {[%clk 0:00:08.4]}
26... h6 {[%clk 0:01:09.1]} 27. Qxf7+ {[%clk 0:00:05.6]} 27... Kh7 {[%clk
0:01:09]} 28. Bf6 {[%clk 0:00:05.6]} 28... Rg8 {[%clk 0:01:03.3]} 29. Qxd7
{[%clk 0:00:05.3]} 29... Kh8 {[%clk 0:00:53.4]} 30. Bxg7+ {[%clk 0:00:05.2]}
30... Rxg7 {[%clk 0:00:54.3]} 31. Rf8+ {[%clk 0:00:05]} 31... Kh7 {[%clk
0:00:54.9]} 32. Rf7 {[%clk 0:00:05.5]} 32... Rxf7 {[%clk 0:00:49]} 33. Qxf7+
{[%clk 0:00:06.4]} 33... Kh8 {[%clk 0:00:49.9]} 34. Rf1 {[%clk 0:00:04.6]} 34...
Rb8 {[%clk 0:00:48.9]} 35. Qf6+ {[%clk 0:00:04.6]} 35... Kh7 {[%clk 0:00:45.5]}
36. Qxe6 {[%clk 0:00:05.2]} 36... Rg8 {[%clk 0:00:36.9]} 37. Rf7+ {[%clk
0:00:04.8]} 37... Rg7 {[%clk 0:00:37.5]} 38. Rxg7+ {[%clk 0:00:04.8]} 38... Kxg7
{[%clk 0:00:38.4]} 39. d7 {[%clk 0:00:05]} 39... h5 {[%clk 0:00:27.5]} 40. Qf6+
{[%clk 0:00:05.1]} 40... Kh6 {[%clk 0:00:27.7]} 41. d8=Q {[%clk 0:00:05.2]}
41... Qa1+ {[%clk 0:00:26.5]} 42. Kh2 {[%clk 0:00:04.3]} 42... Qxb2 {[%clk
0:00:27.4]} 43. Qg5+ {[%clk 0:00:04.1]} 1-0

[Event "Early-Titled-Tuesday-Blitz-April-16-2024"]
[Site "Chess.com"]
[Date "2024.04.16"]
[Round "8"]
[White "TitarovVasiliYouTube"]
[Black "Cheer_Down"]
[Result "0-1"]
[WhiteElo "2592"]
[BlackElo "2508"]
[TimeControl "180+1"]
[EndTime "9:31:36 PDT"]
[Termination "Cheer_Down won on time"]

1. e4 {[%clk 0:03:00.9]} 1... e5 {[%clk 0:02:59.9]} 2. Nf3 {[%clk 0:03:00.8]}
2... Nc6 {[%clk 0:03:00.4]} 3. Be2 {[%clk 0:03:01.2]} 3... Nf6 {[%clk
0:02:59.6]} 4. d3 {[%clk 0:03:01.7]} 4... d5 {[%clk 0:02:59.6]} 5. Nbd2 {[%clk
0:03:01.5]} 5... Bc5 {[%clk 0:02:57.8]} 6. O-O {[%clk 0:03:01.4]} 6... O-O
{[%clk 0:02:57.5]} 7. c3 {[%clk 0:03:01]} 7... a5 {[%clk 0:02:57.4]} 8. a4
{[%clk 0:03:01.2]} 8... Re8 {[%clk 0:02:55.3]} 9. h3 {[%clk 0:03:01.2]} 9... h6
{[%clk 0:02:53.8]} 10. Re1 {[%clk 0:03:01.4]} 10... Be6 {[%clk 0:02:40.3]} 11.
Bf1 {[%clk 0:02:57]} 11... Qd6 {[%clk 0:02:32.8]} 12. exd5 {[%clk 0:02:56.5]}
12... Bxd5 {[%clk 0:02:32.9]} 13. Nc4 {[%clk 0:02:42.9]} 13... Bxc4 {[%clk
0:02:29.2]} 14. dxc4 {[%clk 0:02:43.8]} 14... e4 {[%clk 0:02:26.6]} 15. Qxd6
{[%clk 0:02:42]} 15... cxd6 {[%clk 0:02:18.7]} 16. Nh4 {[%clk 0:02:39.8]} 16...
Ne5 {[%clk 0:01:58.5]} 17. Nf5 {[%clk 0:02:26.7]} 17... Nd3 {[%clk 0:01:51.5]}
18. Bxd3 {[%clk 0:02:26.4]} 18... exd3 {[%clk 0:01:51.9]} 19. Be3 {[%clk
0:02:23.9]} 19... Ne4 {[%clk 0:01:46.1]} 20. Rad1 {[%clk 0:02:11]} 20... d2
{[%clk 0:01:39.4]} 21. Re2 {[%clk 0:02:11]} 21... g6 {[%clk 0:01:32.3]} 22.
Nxh6+ {[%clk 0:01:11]} 22... Kg7 {[%clk 0:01:32.1]} 23. Ng4 {[%clk 0:01:11.9]}
23... f5 {[%clk 0:01:31.9]} 24. Nh2 {[%clk 0:01:11.7]} 24... Ra6 {[%clk
0:00:43.9]} 25. Nf3 {[%clk 0:01:10.8]} 25... Rb6 {[%clk 0:00:43.8]} 26. Bxd2
{[%clk 0:00:35.4]} 26... Rxb2 {[%clk 0:00:39.5]} 27. Bh6+ {[%clk 0:00:35.1]}
27... Kxh6 {[%clk 0:00:35.5]} 28. Rxb2 {[%clk 0:00:36]} 28... Nxc3 {[%clk
0:00:34.7]} 29. Rd3 {[%clk 0:00:29.4]} 29... Nxa4 {[%clk 0:00:30.2]} 30. Rb1
{[%clk 0:00:28.1]} 30... Nb6 {[%clk 0:00:25.1]} 31. Kf1 {[%clk 0:00:13.2]} 31...
a4 {[%clk 0:00:25]} 32. Nd4 {[%clk 0:00:11.1]} 32... a3 {[%clk 0:00:20.9]} 33.
Nc2 {[%clk 0:00:04.6]} 33... Nxc4 {[%clk 0:00:20.4]} 34. Ra1 {[%clk 0:00:02.9]}
34... b5 {[%clk 0:00:19]} 35. g3 {[%clk 0:00:01.4]} 35... b4 {[%clk 0:00:18.7]}
36. Nd4 {[%clk 0:00:01.2]} 36... Bxd4 {[%clk 0:00:16]} 37. Rxd4 {[%clk
0:00:01.8]} 37... d5 {[%clk 0:00:16.2]} 38. Rxd5 {[%clk 0:00:01.9]} 38... b3
{[%clk 0:00:16.7]} 39. Rd3 {[%clk 0:00:01.3]} 39... b2 {[%clk 0:00:16.6]} 0-1

[Event "Early-Titled-Tuesday-Blitz-April-16-2024"]
[Site "Chess.com"]
[Date "2024.04.16"]
[Round "8"]
[White "Pedrada88"]
[Black "Viktoker"]
[Result "0-1"]
[WhiteElo "2564"]
[BlackElo "2472"]
[TimeControl "180+1"]
[EndTime "9:31:38 PDT"]
[Termination "Viktoker won by checkmate"]

1. e4 {[%clk 0:03:00.9]} 1... c6 {[%clk 0:02:38]} 2. d4 {[%clk 0:02:59.9]} 2...
d5 {[%clk 0:02:38.9]} 3. e5 {[%clk 0:03:00.4]} 3... c5 {[%clk 0:02:37.2]} 4.
dxc5 {[%clk 0:02:58.3]} 4... e6 {[%clk 0:02:32.7]} 5. a3 {[%clk 0:02:58.3]} 5...
Nd7 {[%clk 0:02:20]} 6. Nf3 {[%clk 0:02:53.5]} 6... Bxc5 {[%clk 0:02:16.4]} 7.
b4 {[%clk 0:02:53.3]} 7... Bb6 {[%clk 0:02:16.5]} 8. c4 {[%clk 0:02:51.7]} 8...
Ne7 {[%clk 0:01:45.8]} 9. Nc3 {[%clk 0:02:46.7]} 9... dxc4 {[%clk 0:01:40.7]}
10. Bxc4 {[%clk 0:02:44.5]} 10... Qc7 {[%clk 0:01:37.3]} 11. Qb3 {[%clk
0:02:44]} 11... Nxe5 {[%clk 0:01:28.4]} 12. Bb5+ {[%clk 0:02:41.3]} 12... N5c6
{[%clk 0:01:23.9]} 13. O-O {[%clk 0:02:27.4]} 13... O-O {[%clk 0:01:21.8]} 14.
Bb2 {[%clk 0:02:19.7]} 14... a6 {[%clk 0:01:19.7]} 15. Bd3 {[%clk 0:02:18.6]}
15... Ng6 {[%clk 0:01:15.1]} 16. h4 {[%clk 0:02:14]} 16... Nd4 {[%clk
0:01:05.1]} 17. Nxd4 {[%clk 0:02:10.4]} 17... Bxd4 {[%clk 0:01:06]} 18. Rac1
{[%clk 0:02:06.5]} 18... Qe5 {[%clk 0:00:59]} 19. Rfe1 {[%clk 0:02:01.6]} 19...
Qf4 {[%clk 0:00:41]} 20. Qc2 {[%clk 0:01:46.8]} 20... e5 {[%clk 0:00:34.8]} 21.
h5 {[%clk 0:01:15.9]} 21... Nh4 {[%clk 0:00:34.2]} 22. Bxh7+ {[%clk 0:01:15.5]}
22... Kh8 {[%clk 0:00:34.3]} 23. Be4 {[%clk 0:01:15.5]} 23... f5 {[%clk
0:00:30.9]} 24. Nd5 {[%clk 0:00:43.1]} 24... Qg5 {[%clk 0:00:14.6]} 25. Bxd4
{[%clk 0:00:43.2]} 25... fxe4 {[%clk 0:00:14.9]} 26. Qxe4 {[%clk 0:00:38.9]}
26... exd4 {[%clk 0:00:13.1]} 27. Kf1 {[%clk 0:00:33.1]} 27... Bf5 {[%clk
0:00:12.9]} 28. Qxd4 {[%clk 0:00:06.4]} 28... Qxg2+ {[%clk 0:00:13]} 29. Ke2
{[%clk 0:00:07.1]} 29... Bg4+ {[%clk 0:00:12.8]} 30. Kd2 {[%clk 0:00:06]} 30...
Nf3+ {[%clk 0:00:13.1]} 31. Kc3 {[%clk 0:00:05.5]} 31... Nxd4 {[%clk 0:00:13.8]}
32. Kxd4 {[%clk 0:00:05.8]} 32... Rad8 {[%clk 0:00:13.3]} 33. Re5 {[%clk
0:00:06.1]} 33... Qxf2+ {[%clk 0:00:13.1]} 34. Re3 {[%clk 0:00:06]} 34... Rf4+
{[%clk 0:00:12.7]} 35. Ke5 {[%clk 0:00:05.5]} 35... Rxd5+ {[%clk 0:00:13.1]} 36.
Kxd5 {[%clk 0:00:05]} 36... Qxe3 {[%clk 0:00:13.6]} 37. Rc8+ {[%clk 0:00:05.5]}
37... Kh7 {[%clk 0:00:14.3]} 38. Rh8+ {[%clk 0:00:05.5]} 38... Kxh8 {[%clk
0:00:14]} 39. h6 {[%clk 0:00:06.4]} 39... Rd4+ {[%clk 0:00:14.2]} 40. Kc5 {[%clk
0:00:06.4]} 40... Qe5+ {[%clk 0:00:14.4]} 41. Kb6 {[%clk 0:00:07.3]} 41... Qd6+
{[%clk 0:00:14.6]} 42. Ka7 {[%clk 0:00:08.2]} 42... b5 {[%clk 0:00:14.5]} 43. a4
{[%clk 0:00:09.1]} 43... Qc7+ {[%clk 0:00:14.5]} 44. Kxa6 {[%clk 0:00:09.3]}
44... Rd5 {[%clk 0:00:13.7]} 45. axb5 {[%clk 0:00:07.5]} 45... Rd6+ {[%clk
0:00:13.3]} 46. b6 {[%clk 0:00:07.9]} 46... Qxb6# {[%clk 0:00:13.7]} 0-1